Workbook

Sheet Поступления от иной деят
A1: Отчет о выполнении планафинансово-хозяйственной деятельности МАОУ "Лицей №21" по состоянию на 01.02.2018 г.
B3: Всего на 2018 год | E3: Получено на 01.02.2018 г. | H3: Израсходовано
B4: Всего | C4: Поступления от оказания муниципальными учреждением (подразделением) услуг (выполнения работ) , предоставление которых для физических и юридических лиц осуществляется на платной основе | D4: Поступления от иной приносящей доход деятельности, всего: | E4: Всего | F4: Поступления от оказания муниципальными учреждением (подразделением) услуг (выполнения работ) , предоставление которых для физических и юридических лиц осуществляется на платной основе | G4: Поступления от иной приносящей доход деятельности, всего: | H4: Всего | I4: Поступления от оказания муниципальными учреждением (подразделением) услуг (выполнения работ) , предоставление которых для физических и юридических лиц осуществляется на платной основе | J4: Поступления от иной приносящей доход деятельности, всего:
A6: Неиспользованный остаток на 01.01.2017 | B6: =C6+D6 -> 185397.42 | C6: 185397.42
A7: Доходы , всего | B7: =C7+D7 -> 2625705.36 | C7: =SUM(C9:C26) -> 2617705.36 | D7: =SUM(D9:D26) -> 8000 | E7: =F7+G7 -> 326790.51 | F7: =SUM(F9:F26) -> 325847.14 | G7: =SUM(G9:G26) -> 943.37 | H7: =I7+J7 -> 0 | I7: =SUM(I9:I26) -> 0 | J7: =SUM(J9:J26) -> 0
A8: в т.ч. | B8: 0 | E8: 0 | H8: 0
A9: Родительские средства на сод.детей в лагере | B9: 258750 | C9: 258750 | E9: 0 | H9: 0
A10: Обучение русскому языку | B10: 186704.08 | C10: 186704.08 | E10: 33271 | F10: 33271 | H10: 0
A11: Обучение математике | B11: 377126.4 | C11: 377126.4 | E11: 52622.5 | F11: 52622.5 | H11: 0
A12: Обучение английскому языку | B12: 64699 | C12: 64699 | E12: 0 | H12: 0
A13: Подготовка к школе | B13: 804268.3 | C13: 804268.3 | E13: 136842.64 | F13: 136842.64 | H13: 0
A14: Обучение химии | B14: 0 | E14: 0 | H14: 0
A15: Обучение работе на ПК | B15: 0 | E15: 0 | H15: 0
A16: Обучение физике | B16: 27788.08 | C16: 27788.08 | E16: 4074 | F16: 4074 | H16: 0
A17: Обучение обществознанию | B17: 113393 | C17: 113393 | E17: =F17+G17 -> 12561.5 | F17: 12561.5 | H17: 0
A18: Обучение биологии | B18: 6111 | C18: 6111 | E18: 1018.5 | F18: 1018.5 | H18: 0
A19: Тренаженый зал | B19: 9506 | C19: 9506 | E19: 1940 | F19: 1940 | H19: 0
A20: Обучение истории | B20: 57715 | C20: 57715 | E20: 9166.5 | F20: 9166.5 | H20: 0
A21: Умники и умницы | B21: 681914 | C21: 681914 | E21: 74350.5 | F21: 74350.5 | H21: 0
A22: Обучение информатики | B22: 22067.5 | C22: 22067.5 | E22: 0 | H22: 0
A23: Группа пед присмотра | B23: 7663 | C23: 7663 | E23: 0 | H23: 0
A24: аренда | B24: 6565.69 | D24: 8000 | E24: 943.37 | G24: 943.37 | H24: 0
A25: стипендия | B25: 0 | E25: 0 | H25: 0
A26: ндс | B26: 0 | E26: 0 | H26: 0
A27: Спонсорские средства | B27: 0 | E27: 0 | H27: 0
B28: 0 | E28: 0 | H28: 0
B29: 0 | E29: 0 | H29: 0
B30: 0 | E30: 0 | H30: 0
B31: 0 | E31: 0 | H31: 0
A32: Расходы , всего | B32: 2811102.78 | C32: =C33+C37+C39+C43+C46+C53+C66+C90+C98+C104+C44 -> 2803102.78 | D32: =D33+D37+D39+D43+D46+D53+D66+D90+D98+D104 -> 8000 | E32: 326790.51 | F32: =F33+F37+F39+F43+F46+F53+F66+F90+F98+F104+F44 -> 325847.14 | G32: =G33+G37+G39+G43+G46+G53+G66+G90+G98+G104 -> 943.37 | H32: 28888.04 | I32: =I33+I37+I39+I43+I46+I53+I66+I90+I98+I104+I44 -> 28550.4 | J32: =J33+J37+J39+J43+J46+J53+J66+J90+J98+J104 -> 337.64
A33: Заработная плата, всего | B33: 1270293.99 | C33: 1270293.99 | E33: 200000 | F33: 200000 | H33: 500 | I33: 500
A34: В т.ч. По нормативу, расчету | B34: 0 | C34: =SUM(D34:E34) -> 0 | E34: 0 | F34: =SUM(G34:H34) -> 0 | H34: 0 | I34: =SUM(J34:K34) -> 0
A35: награждение победителей конкурса "Лучший воспитатель, ПДО" | B35: 0 | C35: =SUM(D35:E35) -> 0 | E35: 0 | F35: =SUM(G35:H35) -> 0 | H35: 0 | I35: =SUM(J35:K35) -> 0
A36: в т.ч. педагогические работники | B36: 903653.23 | C36: 903653.23 | E36: 173500 | F36: 173500 | H36: 500 | I36: 500
B37: 0 | E37: 0 | H37: 0
B38: 0 | E38: 0 | H38: 0
A39: Начисления на оплату труда, всего | B39: 383628.79 | C39: 383628.79 | E39: 85183.34 | F39: 85183.34 | H39: 0
A40: В т.ч. По нормативу, расчету | B40: 0 | C40: =SUM(D40:E40) -> 0 | E40: 0 | F40: =SUM(G40:H40) -> 0 | H40: 0 | I40: =SUM(J40:K40) -> 0
A41: награждение победителей конкурса "Лучший воспитатель, ПДО" | B41: 0 | C41: =SUM(D41:E41) -> 0 | E41: 0 | F41: =SUM(G41:H41) -> 0 | H41: 0 | I41: =SUM(J41:K41) -> 0
A42: в т.ч. педагогические работники | B42: 277389.13 | C42: 277389.13 | E42: 52397 | F42: 52397 | H42: 0
B43: 0 | E43: 0 | H43: 0
A44: услуги связи | B44: 7929.6 | C44: 7929.6 | E44: 660.8 | F44: 660.8 | H44: 660.8 | I44: 660.8
A45: Транспортные услуги | B45: 0 | C45: =SUM(D45:E45) -> 0 | E45: 0 | F45: =SUM(G45:H45) -> 0 | H45: 0 | I45: =SUM(J45:K45) -> 0
A46: Коммунальные услуги, всего | B46: 7532.06 | C46: 4532.06 | D46: 3000 | E46: 1337.64 | F46: 1000 | G46: 337.64 | H46: 1052.24 | I46: 714.6 | J46: 337.64
A47: Свет ОАО "ТОСК" | B47: 0 | C47: =SUM(D47:E47) -> 0 | E47: 0 | F47: =SUM(G47:H47) -> 0 | H47: 0 | I47: =SUM(J47:K47) -> 0
A48: Тепло, всего | B48: 0 | C48: 0 | D48: =D49+D50 -> 0 | E48: 0 | F48: 0 | G48: =G49+G50 -> 0 | H48: 0 | I48: 0 | J48: =J49+J50 -> 0
A49: ОАО "ТКС" | B49: 0 | C49: 0 | E49: 0 | F49: 0 | H49: 0 | I49: 0
A50: МУП "ТИС" | B50: 0 | C50: 0 | E50: 0 | F50: 0 | H50: 0 | I50: 0
A51: Вода ОАО "ТКС" | B51: 0 | C51: 0 | E51: 0 | F51: 0 | H51: 0 | I51: 0
A52: Арендная плата | B52: 0 | C52: 0 | E52: 0 | F52: 0 | H52: 0 | I52: 0
A53: Расходы, услуги по содержанию имущества, всего | B53: 0 | C53: =SUM(C54:C65) -> 0 | D53: =SUM(D54:D65) -> 0 | E53: 0 | F53: =SUM(F54:F65) -> 0 | G53: =SUM(G54:G65) -> 0 | H53: 0 | I53: =SUM(I54:I65) -> 0 | J53: =SUM(J54:J65) -> 0
A54: противопожарные мероприятия | B54: 0 | E54: 0 | H54: 0
A55: из них электроизмер.работы | B55: 0 | E55: 0 | H55: 0
B56: 0 | E56: 0 | H56: 0
B57: 0 | E57: 0 | H57: 0
B58: 0 | E58: 0 | H58: 0
B59: 0 | E59: 0 | H59: 0
B60: 0 | E60: 0 | H60: 0
B61: 0 | E61: 0 | H61: 0
B62: 0 | E62: 0 | H62: 0
B63: 0 | E63: 0 | H63: 0
B64: 0 | E64: 0 | H64: 0
B65: 0 | E65: 0 | H65: 0
A66: Прочие работы, услуги , всего | B66: 533126.28 | C66: =SUM(C67:C89) -> 533126.28 | D66: =SUM(D67:D89) -> 0 | E66: 26675 | F66: =SUM(F67:F89) -> 26675 | G66: =SUM(G67:G89) -> 0 | H66: 26675 | I66: =SUM(I67:I89) -> 26675 | J66: =SUM(J67:J89) -> 0
A67: заправка катриджей | B67: 7000 | C67: 7000 | E67: 1200 | F67: 1200 | H67: 1200 | I67: 1200
A68: спец оценка условий труда | B68: 0 | E68: 0 | H68: 0
A69: текущий ремонт здания | B69: 20000 | C69: 20000 | E69: 0 | H69: 0
A70: аттестаты | B70: 4300 | C70: 4300 | E70: 0 | H70: 0
A71: питание в пришкольном лагере | B71: 248015.25 | C71: 248015.25 | E71: =F71+G71 -> 0 | H71: =I71+J71 -> 0
A72: подписка | B72: 24269.7 | C72: 24269.7 | E72: 0 | H72: 0
B73: 0 | E73: 0 | H73: 0
B74: 0 | E74: 0 | H74: 0
B75: 0 | E75: 0 | H75: 0
A76: лицензирование, аккредитация | B76: 25300 | C76: 25300 | E76: 0 | H76: 0
A77: противопожарные мероприятия | B77: 0 | E77: 0 | H77: 0
B78: 0 | E78: 0 | H78: 0
B79: 0 | E79: 0 | H79: 0
B80: 0 | E80: 0 | H80: 0
B81: =C81+D81 -> 0 | E81: 0 | H81: 0
A82: программное обеспечение | B82: 121821.33 | C82: 121821.33 | E82: 0 | H82: 0
A83: оформление тех документации | B83: 13620 | C83: 13620 | E83: 12675 | F83: 12675 | H83: 12675 | I83: 12675
A84: ремонт оборудования | B84: 19360 | C84: 19360 | E84: 0 | H84: 0
A85: скминар | B85: 0 | E85: 0 | H85: 0
A86: реставрация | B86: 22240 | C86: 22240 | E86: 0 | H86: 0
A87: курсы | B87: 7200 | C87: 7200 | E87: 0 | H87: 0
A88: удаление наледи | B88: 20000 | C88: 20000 | E88: 12800 | F88: 12800 | H88: 12800 | I88: 12800
B89: 0 | E89: 0 | H89: 0
A90: Прочие расходы, всего | B90: 56768.43 | C90: =C91+C92+C93+C94+C95+C96+C97 -> 56768.43 | D90: =D91+D92+D93+D94+D95+D96+D97 -> 0 | E90: 0 | F90: =F91+F92+F93+F94+F95+F96+F97 -> 0 | G90: =G91+G92+G93+G94+G95+G96+G97 -> 0 | H90: 0 | I90: =I91+I92+I93+I94+I95+I96+I97 -> 0 | J90: =J91+J92+J93+J94+J95+J96+J97 -> 0
A91: стипендия | B91: 0 | E91: 0 | H91: 0
A92: ндс | B92: 0 | E92: 0 | H92: 0
A93: госпошлина | B93: 56768.43 | C93: 56768.43 | E93: 0 | H93: 0
B94: 0 | E94: 0 | H94: 0
B95: 0 | E95: 0 | H95: 0
B96: 0 | E96: 0 | H96: 0
A97: ндс | B97: 0 | E97: 0 | H97: 0
A98: Увеличение стоимости основных средств, всего | B98: 165714.76 | C98: =SUM(C99:C103) -> 165714.76 | D98: =SUM(D99:D103) -> 0 | E98: 0 | F98: =SUM(F99:F103) -> 0 | G98: =SUM(G99:G103) -> 0 | H98: 0 | I98: =SUM(I99:I103) -> 0 | J98: =SUM(J99:J103) -> 0
A99: медали | B99: 1180 | C99: 1180 | E99: 0 | H99: 0
A100: оргтехника | B100: 57084.76 | C100: 57084.76 | E100: 0 | H100: 0
A101: кушетки | B101: 12300 | C101: 12300 | E101: 0 | H101: 0
A102: контейнер | B102: 19650 | C102: 19650 | E102: 0 | H102: 0
A103: мебель | B103: 75500 | C103: 75500 | E103: 0 | H103: 0
A104: Увеличение стоимости материальных запасов, всего | B104: 386108.87 | C104: =SUM(C105:C111) -> 381108.87 | D104: =SUM(D105:D111) -> 5000 | E104: 12933.73 | F104: =SUM(F105:F111) -> 12328 | G104: =SUM(G105:G111) -> 605.73 | H104: 0 | I104: =SUM(I105:I111) -> 0 | J104: =SUM(J105:J111) -> 0
A105: прочее | B105: 383708.87 | C105: 378708.87 | D105: 5000 | E105: 12933.73 | F105: 12328 | G105: 605.73 | H105: 0
A106: журналы | B106: 2400 | C106: 2400 | E106: 0 | H106: 0
B107: 0 | E107: 0 | H107: 0
B108: 0 | E108: 0 | H108: 0
B109: 0 | E109: 0 | H109: 0
B110: 0 | E110: 0 | H110: 0
B111: 0 | E111: 0 | H111: 0
A112: Неиспользованный остаток на 01.01.2018 | H112: =SUM(B6+E7-H32) -> 483299.89 | I112: =SUM(C6+F7-I32) -> 482694.16 | J112: =SUM(D6+G7-J32) -> 605.73
A113: Примечание: сумма 7122,95 возврат фсс
A114: Руководитель | C114: В.Г.Рудник
A115: Главный бухгалтер | C115: Н.А.Прыткова

Sheet Субсидия на вып мун задания
A1: Отчет о выполнении плана финансово-хозяйственной деятельности МАОУ "Лицей №21" по состоянию 01.02.2018
B3: ВР | C3: КОСГУ | D3: Всего на 2018 год | M3: Получено на 01.02.2018 г. | V3: Израсходовано
D4: Всего | E4: Реализация образовательных программ общего образования (обеспечение деятельности организаций) 07 02 01 2 01 81030 | F4: Организация летнего отдыха в каникулярное время(город пришк лагерь) 0702 01 2 06 S8180 (ГОРОД) | G4: Организация отдыха детей в каникулярное время(область пришкольный лагерь) 0707 01 2 06 S8180 (ОБЛАСТЬ) | H4: Приобретение (изготовление) образовательной организацией бланков документов об образовании 01 2 01 N7880 | I4: Обеспечение государственных гарантий прав граждан на получение общедоступного и бесплатного общего образования | M4: Всего | N4: Реализация образовательных программ общего образования (обеспечение деятельности организаций) 07 02 01 2 01 81030 | O4: Организация летнего отдыха в каникулярное время(город пришк лагерь) 0702 01 2 06 S8180 (ГОРОД) | P4: Организация отдыха детей в каникулярное время(область пришкольный лагерь) 0707 01 2 06 S8180 (ОБЛАСТЬ) | Q4: Приобретение (изготовление) образовательной организацией бланков документов об образовании 01 2 01 N7880 | R4: Обеспечение государственных гарантий прав граждан на получение общедоступного и бесплатного общего образования | V4: Всего | W4: Реализация образовательных программ общего образования (обеспечение деятельности организаций) 07 02 01 2 01 81030 | X4: Организация летнего отдыха в каникулярное время(город пришк лагерь) 0702 01 2 06 S8180 (ГОРОД) | Y4: Организация отдыха детей в каникулярное время(область пришкольный лагерь) 0707 01 2 06 S8180 (ОБЛАСТЬ) | Z4: Приобретение (изготовление) образовательной организацией бланков документов об образовании 01 2 01 N7880 | AA4: Обеспечение государственных гарантий прав граждан на получение общедоступного и бесплатного общего образования
I5: Расходы на оплату труда педагогических работников 07 02 01 2 01 N6300 | J5: Прочие расходы, связанные с обеспечением учебного процесса 07 02 01 2 01 N6300 | R5: Расходы на оплату труда педагогических работников 07 02 01 2 01 N6300 | S5: Прочие расходы, связанные с обеспечением учебного процесса 07 02 01 2 01 N6300 | AA5: Расходы на оплату труда педагогических работников 07 02 01 2 01 N6300 | AB5: Прочие расходы, связанные с обеспечением учебного процесса 07 02 01 2 01 N6300
A6: Субсидия бюджетным учреждениям на финансовое обеспечение муниципального задания на оказание муниципальных услуг, всего | B6: 621 | C6: 241 | D6: =SUM(E6:L6) -> 33261362.78 | E6: =E7+E12+E13+E16+E18+E25+E44+E69+E80+E86 -> 2701762.78 | F6: =F7+F12+F13+F16+F18+F25+F44+F69+F80+F86 -> 0 | G6: =G7+G12+G13+G16+G18+G25+G44+G69+G80+G86 -> 0 | H6: 0 | I6: =I7+I12+I13+I16+I18+I25+I44+I69+I80+I86 -> 26411300 | J6: 4148300 | K6: =K7+K12+K13+K16+K18+K25+K44+K69+K80+K86 -> 0 | L6: 0 | M6: =SUM(N6:U6) -> 856260.2 | N6: =N7+N12+N13+N16+N18+N25+N44+N69+N80+N86 -> 429309 | O6: 0 | P6: 0 | Q6: 0 | R6: 300000 | S6: 126951.2 | T6: 0 | U6: 0 | V6: =SUM(W6:AD6) -> 814097.35 | W6: =W7+W12+W13+W16+W18+W25+W44+W69+W80+W86 -> 429309 | X6: 0 | Y6: 0 | Z6: 0 | AA6: 264751.26 | AB6: 120037.09 | AC6: 0 | AD6: 0
A7: Заработная плата, всего | D7: =SUM(E7:L7) -> 23279800 | I7: 20279800 | J7: 3000000 | M7: =SUM(N7:U7) -> 375000 | R7: 300000 | S7: 75000 | V7: =SUM(W7:AD7) -> 332837.15 | AA7: 264751.26 | AB7: 68085.89
A8: В т.ч. По нормативу, расчету | D8: 0 | M8: 0 | V8: 0
A9: награждение победителей конкурса "Лучший воспитатель, ПДО" | D9: 0 | M9: 0 | V9: 0
A10: в т.ч педагогические работники | D10: 20169800 | I10: 20169800 | M10: 0 | V10: 264751.26 | AA10: 264751.26
A11: воспитатели | D11: 110000 | I11: 110000 | M11: 0 | V11: 2000 | AA11: 2000
A12: Прочие выплаты | D12: 0 | M12: 0 | V12: 0
A13: Начисления на оплату труда, всего | D13: 7024300 | I13: 6131500 | J13: 892800 | M13: 0 | V13: 0
A14: В т.ч. По нормативу, расчету | D14: 0 | M14: 0 | V14: 0
A15: награждение победителей конкурса "Лучший воспитатель, ПДО" | D15: 0 | M15: 0 | V15: 0
A16: Услуги связи | D16: 177900 | E16: 35400 | J16: 142500 | M16: 14100 | N16: 2200 | S16: 11900 | V16: 14100 | W16: 2200 | AB16: 11900
A17: Транспортные услуги | D17: 0 | M17: 0 | V17: 0
A18: Коммунальные услуги, всего | D18: 1160364.78 | E18: 1160364.78 | M18: 16700 | N18: 16700 | V18: 16700 | W18: 16700
A19: Свет ОАО "ТОСК" | D19: 0 | M19: 0 | V19: 0
A20: Тепло, всего | D20: 0 | H20: =H21+H22 -> 0 | I20: =I21+I22 -> 0 | J20: =J21+J22 -> 0 | M20: 0 | Q20: =Q21+Q22 -> 0 | R20: =R21+R22 -> 0 | S20: =S21+S22 -> 0 | V20: 0 | Z20: =Z21+Z22 -> 0 | AA20: =AA21+AA22 -> 0 | AB20: =AB21+AB22 -> 0
A21: ОАО "ТКС" | D21: 0 | M21: 0 | V21: 0
A22: МУП "ТИС" | D22: 0 | M22: 0 | V22: 0
A23: Вода ОАО "ТКС" | D23: 0 | M23: 0 | V23: 0
A24: Арендная плата | D24: 0 | M24: 0 | V24: 0
A25: Расходы, услуги по содержанию имущества, всего | D25: 333300 | E25: =E26+E27+E28+E29+E30+E40+E41+E42+E43 -> 333300 | F25: =F26+F27+F28+F29+F30+F40+F41+F42+F43 -> 0 | G25: 0 | H25: 0 | I25: 0 | J25: 0 | K25: 0 | L25: 0 | M25: 6300 | N25: =N26+N27+N28+N29+N30+N40+N41+N42+N43 -> 6300 | O25: 0 | P25: 0 | Q25: 0 | R25: 0 | S25: 0 | T25: 0 | U25: 0 | V25: 6300 | W25: =W26+W27+W28+W29+W30+W40+W41+W42+W43 -> 6300 | X25: 0 | Y25: 0 | Z25: 0 | AA25: 0 | AB25: 0 | AC25: 0 | AD25: 0
A26: Текущий ремонтремонт оборудования школьных столовых | D26: 30600 | E26: 30600 | M26: 0 | V26: 0
A27: вывоз мусора | D27: 78500 | E27: 78500 | M27: 6300 | N27: 6300 | V27: 6300 | W27: 6300
A28: дератизация | D28: 3400 | E28: 3400 | M28: 0 | V28: 0
A29: техническое обслуживание школьных столовых | D29: 92800 | E29: 92800 | M29: 0 | V29: 0
A30: противопожарные мероприятия | D30: 118000 | E30: =SUM(E31+E32+E33+E34+E35+E36+E37+E38+E39) -> 118000 | F30: 0 | G30: 0 | H30: 0 | I30: 0 | J30: 0 | K30: 0 | L30: 0 | M30: 0 | N30: =SUM(N31+N32+N33+N34+N35+N36+N37+N38+N39) -> 0 | O30: 0 | P30: 0 | Q30: 0 | R30: 0 | S30: 0 | T30: 0 | U30: 0 | V30: 0 | W30: =SUM(W31+W32+W33+W34+W35+W36+W37+W38+W39) -> 0 | X30: 0 | Y30: 0 | Z30: 0 | AA30: 0 | AB30: 0 | AC30: 0 | AD30: 0
A31: из них техническое перед опов при пожаре | D31: 36000 | E31: 36000 | M31: 0 | V31: 0
A32: перезарядка огнетушителей | D32: 0 | M32: 0 | V32: 0
A33: обслуживание трев.кнопки | D33: 7000 | E33: 7000 | M33: 0 | V33: 0
A34: электроизм. Работы | D34: 39000 | E34: 39000 | M34: 0 | V34: 0
A35: Техобслуживание АПС | D35: 36000 | E35: 36000 | M35: 0 | V35: 0
A36: огнезащитная обработка | D36: 0 | M36: 0 | V36: 0
D37: 0 | M37: 0 | V37: 0
A38: испытание пожарных кранов | D38: 0 | M38: 0 | V38: 0
A39: ТО системы оповещ. О пож | D39: 0 | M39: 0 | V39: 0
A40: Заправка катриджей | D40: 0 | M40: 0 | V40: 0
A41: Прочие расходы, всего | D41: 10000 | E41: 10000 | M41: 0 | V41: 0
D42: 0 | M42: 0 | V42: 0
D43: 0 | M43: 0 | V43: 0
A44: Прочие работы, услуги , всего | D44: 420100 | E44: =SUM(E45:E68) -> 307100 | F44: =SUM(F45:F68) -> 0 | G44: 0 | H44: 0 | I44: 0 | J44: 113000 | K44: 0 | L44: 0 | M44: 40051.2 | N44: =SUM(N45:N68) -> 0 | O44: 0 | P44: 0 | Q44: 0 | R44: 0 | S44: 40051.2 | T44: 0 | U44: 0 | V44: 40051.2 | W44: =SUM(W45:W68) -> 0 | X44: 0 | Y44: 0 | Z44: 0 | AA44: 0 | AB44: 40051.2 | AC44: 0 | AD44: 0
A45: возмещение затрат МУП "Школьник", транспортные расходы лагеря | D45: 0 | M45: 0 | V45: 0
A46: питание в пришкольном лагере | D46: 0 | M46: 0 | V46: 0
A47: льготное питание | D47: 0 | M47: 0 | V47: 0
A48: Установка видеонаблюдения | D48: 0 | M48: 0 | V48: 0
A49: медосмотр | D49: 160900 | E49: 160900 | M49: 0 | V49: 0
A50: лицензирование, аккредитация | D50: 0 | M50: 0 | V50: 0
A51: аттестация раб мест | D51: 0 | M51: 0 | V51: 0
A52: противопожарные мероприятия(монтаж) | D52: 0 | M52: 0 | V52: 0
A53: группа быстрого реагирования | D53: 38000 | E53: 38000 | M53: 0 | V53: 0
A54: Оформление тех документации | D54: 0 | M54: 0 | V54: 0
A55: программное обеспечение | D55: 102900 | E55: 30900 | J55: 72000 | M55: 0 | V55: 0
A56: Поверка счетчиков | D56: 0 | M56: 0 | V56: 0
A57: группа быстрого реагирования) | D57: 0 | M57: 0 | V57: 0
A58: Изготовление печ.прод.(Аттестаты) | D58: 0 | M58: 0 | V58: 0
A59: Дистанционное обучение | D59: 0 | M59: 0 | V59: 0
A60: охрана | D60: 62600 | E60: 62600 | M60: 0 | V60: 0
A61: обследование дефектов зданий | D61: 0 | M61: 0 | V61: 0
A62: монтаж системы видеонаблюдения | D62: 0 | M62: 0 | V62: 0
A63: регистрация земельного участка | D63: 0 | M63: 0 | V63: 0
A64: подписка | D64: 0 | M64: 0 | V64: 0
A65: др. расходы, проф.пробы | D65: 41000 | J65: 41000 | M65: 40051.2 | S65: 40051.2 | V65: 40051.2 | AB65: 40051.2
A66: Пособия на соц.помощь населению | D66: 0 | M66: 0 | V66: 0
A67: другие расходы | D67: 14700 | E67: 14700 | M67: 0 | V67: 0
D68: 0 | M68: 0 | V68: 0
A69: Прочие расходы, всего | D69: 463998 | E69: =E70+E71+E72+E73+E74+E75+E76+E78+E79 -> 463998 | F69: =F70+F71+F72+F73+F74+F75+F76+F78+F79 -> 0 | G69: 0 | H69: 0 | I69: 0 | J69: 0 | K69: 0 | L69: 0 | M69: 404109 | N69: =N70+N71+N72+N73+N74+N75+N76+N78+N79 -> 404109 | O69: 0 | P69: 0 | Q69: 0 | R69: 0 | S69: 0 | T69: 0 | U69: 0 | V69: 404109 | W69: =W70+W71+W72+W73+W74+W75+W76+W78+W79 -> 404109 | X69: 0 | Y69: 0 | Z69: 0 | AA69: 0 | AB69: 0 | AC69: 0 | AD69: 0
A70: стипендия | D70: 0 | M70: 0 | V70: 0
A71: разовые премии | D71: =SUM(E71:L71) -> 0 | M71: =SUM(N71:U71) -> 0 | V71: =SUM(W71:AD71) -> 0
A72: экологические платежи | D72: 0 | M72: 0 | V72: 0
A73: Транспортный налог | D73: 0 | M73: 0 | V73: 0
A74: Налог на имущество | D74: 46889 | E74: 46889 | M74: 0 | V74: 0
A75: земельный налог | D75: 404109 | E75: 404109 | M75: 404109 | N75: 404109 | V75: 404109 | W75: 404109
A76: Госпошлина | D76: 13000 | E76: 13000 | M76: 0 | V76: 0
A77: пени, штрафы | D77: 0 | M77: 0 | V77: 0
D78: 0 | M78: 0 | V78: 0
D79: 0 | M79: 0 | V79: 0
A80: Увеличение стоимости основных средств, всего | D80: 360000 | E80: =E82+E83+E84+E85 -> 360000 | F80: =F82+F83+F84+F85 -> 0 | G80: 0 | H80: 0 | I80: 0 | J80: 0 | K80: 0 | L80: 0 | M80: 0 | N80: =N82+N83+N84+N85 -> 0 | O80: =O82+O83+O84+O85 -> 0 | P80: 0 | Q80: 0 | R80: 0 | S80: 0 | T80: 0 | U80: 0 | V80: 0 | W80: =W82+W83+W84+W85 -> 0 | X80: =X82+X83+X84+X85 -> 0 | Y80: 0 | Z80: 0 | AA80: 0 | AB80: 0 | AC80: 0 | AD80: 0
A81: питание дошкольников в школах-садах | D81: 0 | M81: 0 | V81: 0
A82: прочие основные средства | D82: 0 | M82: 0 | V82: 0
A83: учебники | D83: 0 | M83: 0 | V83: 0
A84: картофелечистка | D84: 360000 | E84: 360000 | M84: 0 | V84: 0
D85: 0 | M85: 0 | V85: 0
A86: Увеличение стоимости материальных запасов, всего | D86: 41600 | E86: =E87+E88+E89 -> 41600 | F86: =F87+F88+F89 -> 0 | G86: 0 | H86: 0 | I86: 0 | J86: 0 | K86: 0 | L86: 0 | M86: 0 | N86: =N87+N88+N89 -> 0 | O86: 0 | P86: 0 | Q86: 0 | R86: 0 | S86: 0 | T86: 0 | U86: 0 | V86: 0 | W86: =W87+W88+W89 -> 0 | X86: 0 | Y86: 0 | Z86: 0 | AA86: 0 | AB86: 0 | AC86: 0 | AD86: 0
A87: прочие | D87: 41600 | E87: 41600 | M87: 0 | V87: 0
D88: 0 | M88: 0 | V88: 0
D89: 0 | M89: 0 | V89: 0
P90: возврат | Y90: возврат
A91: Руководитель | E91: В.Г.Рудник
A93: Главный бухгалтер | E93: Н.А.Прыткова

Sheet Субсидия на иные цели
A1: Отчет о выполнении плана финансово-хозяйственной деятельности МАОУ по состоянию на 01.02.2018г.
B3: ВР | C3: КОСГУ | D3: Всего на 2018 год | Q3: Получено на 01.02.2018 г. | AD3: Израсходовано
D4: Всего | E4: Субсидия на организацию и проведение мероприятий,направленных на реализацию федеральной целевой программы развития образования на 2016-2020 годы 0709 01 2 17 L4980 | F4: Субсидия на софинансирование мероприятий федеральной целевой программы развития образования на 2016-2020 годы 0709 01 2 17 R4980 | G4: Реализация образовательных программ общего образования (обеспечение деятельности организаций) 07 02 01 2 01 81030 | H4: Обеспечение льготным питанием отдельных категорий обучающихся муниципальных общеобразовательных учреждений 0702 01 2 06 S6310 | I4: Лучшие учителя 01 2 07 N6380 | J4: Ежемес выплаты стимул характера мол спец муниц общеобраз организ и единовремен денежн выплаты пед работн , заключившим трудовой договор с общеобр организ по основ месту работы 01 2 07 N6380 | K4: Капитальный ремонт и ремонт объектов муниципальной собственности 07 02 01 2 13 88888 | L4: Обеспечение реализации мероприятий в сфере общего и дополнительного образования (питание малообеспеченных семей (область) 01 2 06 N6310 | M4: Обеспечение мер социальной поддержки многодетных семей в части предоставления бесплатного питания 01 2 06 N3170 | N4: Оплата труда работников, мун.орг-й, обеспечивающих техническую эксплуатацию зданий мун.общеобр.орг-й, подвоз обучающихся и на оплату услуг по охране объектов (ЧОП) 0709 01 2 09 S6520 | O4: Оплата труда работников, мун.орг-й, обеспечивающих техническую эксплуатацию зданий мун.общеобр.орг-й, подвоз обучающихся и на оплату услуг по охране объектов (ЧОП) 0709 01 2 09 S6520 | P4: оплата труда 120000 | Q4: Всего | R4: Субсидия на организацию и проведение мероприятий,направленных на реализацию федеральной целевой программы развития образования на 2016-2020 годы 0709 01 2 17 L4980 | S4: Субсидия на софинансирование мероприятий федеральной целевой программы развития образования на 2016-2020 годы 0709 01 2 17 R4980 | T4: Реализация образовательных программ общего образования (обеспечение деятельности организаций) 07 02 01 2 01 81030 | U4: Обеспечение льготным питанием отдельных категорий обучающихся муниципальных общеобразовательных учреждений 0702 01 2 06 S6310 | V4: Лучшие учителя 01 2 07 N 6380 | W4: Ежемес выплаты стимул характера мол спец муниц общеобраз организ и единовремен денежн выплаты пед работн , заключившим трудовой договор с общеобр организ по основ месту работы 01 2 07 N6380 | X4: Капитальный ремонт и ремонт объектов муниципальной собственности 07 02 01 2 13 88888 | Y4: Обеспечение реализации мероприятий в сфере общего и дополнительного образования (питание малообеспеченных семей (область) 01 2 06 N6310 | Z4: Обеспечение мер социальной поддержки многодетных семей в части предоставления бесплатного питания 01 2 06 N3170 | AA4: Оплата труда работников, мун.орг-й, обеспечивающих техническую эксплуатацию зданий мун.общеобр.орг-й, подвоз обучающихся и на оплату услуг по охране объектов (ЧОП) 0709 01 2 09 S6520 | AB4: Оплата труда работников, мун.орг-й, обеспечивающих техническую эксплуатацию зданий мун.общеобр.орг-й, подвоз обучающихся и на оплату услуг по охране объектов (ЧОП) 0709 01 2 09 S6520 | AC4: молодые учителя 120000 | AD4: Всего | AE4: Субсидия на организацию и проведение мероприятий,направленных на реализацию федеральной целевой программы развития образования на 2016-2020 годы 0709 01 2 17 L4980 | AF4: Субсидия на софинансирование мероприятий федеральной целевой программы развития образования на 2016-2020 годы 0709 01 2 17 R4980 | AG4: Реализация образовательных программ общего образования (обеспечение деятельности организаций) 07 02 01 2 01 81030 | AH4: Обеспечение льготным питанием отдельных категорий обучающихся муниципальных общеобразовательных учреждений 0702 01 2 06 S6310 | AI4: Лучшие учителя 01 2 07 N6380 | AJ4: Ежемес выплаты стимул характера мол спец муниц общеобраз организ и единовремен денежн выплаты пед работн , заключившим трудовой договор с общеобр организ по основ месту работы 01 2 07 N6380 | AK4: Капитальный ремонт и ремонт объектов муниципальной собственности 07 02 01 2 13 88888 | AL4: Обеспечение реализации мероприятий в сфере общего и дополнительного образования (питание малообеспеченных семей (область) 01 2 06 N6310 | AM4: Обеспечение мер социальной поддержки многодетных семей в части предоставления бесплатного питания 01 2 06 N3170 | AN4: Оплата труда работников, мун.орг-й, обеспечивающих техническую эксплуатацию зданий мун.общеобр.орг-й, подвоз обучающихся и на оплату услуг по охране объектов (ЧОП) 0709 01 2 09 S6520 | AO4: Оплата труда работников, мун.орг-й, обеспечивающих техническую эксплуатацию зданий мун.общеобр.орг-й, подвоз обучающихся и на оплату услуг по охране объектов (ЧОП) 0709 01 2 09 S6520 | AP4: молодые учителя 120000
A6: Субсидия бюджетным учреждениям на иные цели, всего | B6: 622 | C6: 241 | D6: =E6+F6+G6+H6+I6+J6+K6+L6+M6+N6+O6+P6 -> 3938135.22 | E6: =E7+E12+E13+E16+E18+E25+E45+E61+E70 -> 0 | F6: =F7+F12+F13+F16+F18+F25+F45+F61+F70 -> 0 | G6: 199935.22 | H6: 519100 | I6: 0 | J6: 91100 | K6: 0 | L6: 1003700 | M6: 459900 | N6: 1664400 | O6: 0 | P6: 0 | Q6: =R6+S6+T6+U6+V6+W6+X6+Y6+Z6+AA6+AB6+AC6 -> 391175.22 | R6: =R7+R12+R13+R16+R18+R25+R45+R61+R70 -> 0 | S6: 0 | T6: 206335.22 | U6: 0 | V6: 0 | W6: 0 | X6: 0 | Y6: 111600 | Z6: 55000 | AA6: 18240 | AB6: 0 | AC6: 0 | AD6: =AE6+AF6+AG6+AH6+AI6+AJ6+AK6+AL6+AM6+AN6+AO6+AP6 -> 380641.92 | AE6: =AE7+AE12+AE13+AE16+AE18+AE25+AE45+AE61+AE70 -> 0 | AF6: 0 | AG6: 206335.22 | AH6: 0 | AI6: 0 | AJ6: 0 | AK6: 0 | AL6: 101066.7 | AM6: 55000 | AN6: 18240 | AO6: 0 | AP6: 0
A7: Заработная плата, всего | D7: 70000 | J7: 70000 | Q7: 0 | AD7: 0
A8: В т.ч. По нормативу, расчету | D8: 0 | Q8: 0 | AD8: 0
A9: награждение победителей конкурса "Лучший воспитатель, ПДО" | D9: 0 | Q9: 0 | AD9: 0
A10: в т.ч.педагогические работники | D10: 70000 | J10: 70000 | Q10: 0 | AD10: 0
A11: воспитатели | D11: 0 | Q11: 0 | AD11: 0
A12: Прочие выплаты | D12: 0 | Q12: 0 | AD12: 0
A13: Начисления на оплату труда, всего | D13: 21100 | J13: 21100 | Q13: 0 | AD13: 0
A14: В т.ч. По нормативу, расчету | D14: 0 | Q14: 0 | AD14: 0
A15: награждение победителей конкурса "Лучший воспитатель, ПДО" | D15: 0 | Q15: 0 | AD15: 0
A16: Услуги связи | D16: 0 | Q16: 0 | AD16: 0
A17: Транспортные услуги | D17: 0 | Q17: 0 | AD17: 0
A18: Коммунальные услуги, всего | D18: 199935.22 | G18: 199935.22 | Q18: 199935.22 | T18: 199935.22 | AD18: 199935.22 | AG18: 199935.22
A19: Свет ОАО "ТОСК" | D19: 0 | Q19: 0 | AD19: 0
A20: Тепло, всего | D20: 0 | H20: =H21+H22 -> 0 | J20: =J21+J22 -> 0 | L20: =L21+L22 -> 0 | M20: =M21+M22 -> 0 | Q20: 0 | U20: =U21+U22 -> 0 | W20: =W21+W22 -> 0 | Y20: =Y21+Y22 -> 0 | Z20: =Z21+Z22 -> 0 | AD20: 0 | AH20: =AH21+AH22 -> 0 | AJ20: =AJ21+AJ22 -> 0 | AL20: =AL21+AL22 -> 0 | AM20: =AM21+AM22 -> 0
A21: ОАО "ТКС" | D21: 0 | Q21: 0 | AD21: 0
A22: МУП "ТИС" | D22: 0 | Q22: 0 | AD22: 0
A23: Вода ОАО "ТКС" | D23: 0 | Q23: 0 | AD23: 0
A24: Арендная плата | D24: 0 | Q24: 0 | AD24: 0
A25: Расходы, услуги по содержанию имущества, всего | D25: 0 | E25: =E26+E27+E28+E29+E30+E31+E37+E38+E39+E40+E41+E42+E43+E44 -> 0 | F25: =F26+F27+F28+F29+F30+F31+F37+F38+F39+F40+F41+F42+F43+F44 -> 0 | G25: 0 | H25: 0 | I25: 0 | J25: 0 | K25: 0 | L25: 0 | M25: 0 | N25: 0 | O25: 0 | P25: 0 | Q25: 6400 | R25: =R26+R27+R28+R29+R30+R31+R37+R38+R39+R40+R41+R42+R43+R44 -> 0 | S25: 0 | T25: 6400 | U25: 0 | V25: 0 | W25: 0 | X25: 0 | Y25: 0 | Z25: 0 | AA25: 0 | AB25: 0 | AC25: 0 | AD25: 6400 | AE25: =AE26+AE27+AE28+AE29+AE30+AE31+AE37+AE38+AE39+AE40+AE41+AE42+AE43+AE44 -> 0 | AF25: 0 | AG25: 6400 | AH25: 0 | AI25: 0 | AJ25: 0 | AK25: 0 | AL25: 0 | AM25: 0 | AN25: 0 | AO25: 0 | AP25: 0
A26: Текущий ремонт и ТО оборудования | D26: 0 | Q26: 0 | AD26: 0
A27: Ремонт учреждений | D27: 0 | Q27: 0 | AD27: 0
A28: вывоз мусора | D28: 0 | Q28: 6400 | T28: 6400 | AD28: 6400 | AG28: 6400
A29: Ремонт АПС | D29: 0 | Q29: 0 | AD29: 0
A30: Ремонт САО | D30: 0 | Q30: 0 | AD30: 0
A31: противопожарные мероприятия | D31: 0 | E31: =SUM(E32:E36) -> 0 | F31: 0 | G31: 0 | H31: 0 | I31: 0 | J31: 0 | K31: 0 | L31: 0 | M31: 0 | N31: 0 | O31: 0 | P31: 0 | Q31: 0 | R31: =SUM(R32:R36) -> 0 | S31: 0 | T31: 0 | U31: 0 | V31: 0 | W31: 0 | X31: 0 | Y31: 0 | Z31: 0 | AA31: 0 | AB31: 0 | AC31: 0 | AD31: 0 | AE31: =SUM(AE32:AE36) -> 0 | AF31: 0 | AG31: 0 | AH31: 0 | AI31: 0 | AJ31: 0 | AK31: 0 | AL31: 0 | AM31: 0 | AN31: 0 | AO31: 0 | AP31: 0
A32: из них: Электроизмерительные работы | D32: 0 | Q32: 0 | AD32: 0
A33: перезарядка огнетушителей | D33: 0 | Q33: 0 | AD33: 0
A34: огнезащитная обработка | D34: 0 | Q34: 0 | AD34: 0
A35: Техобслуживание сис.пер.извещ.о пожаре | D35: 0 | Q35: 0 | AD35: 0
A36: Техобслуживание и ремонт АПС | D36: 0 | Q36: 0 | AD36: 0
A37: Капитальный ремонт | D37: 0 | Q37: 0 | AD37: 0
A38: Текущий ремонт здания | D38: =E38+F38+G38+H38+I38+J38+K38+L38+M38+N38+O38+P38 -> 0 | Q38: 0 | AD38: 0
A39: техобслуживание и проверка счетчиков | D39: 0 | Q39: 0 | AD39: 0
A40: дератизация | D40: 0 | Q40: 0 | AD40: 0
A41: Заправка катриджей | D41: 0 | Q41: 0 | AD41: 0
A42: промывка системы отопления, установка приборов учета | D42: 0 | Q42: 0 | AD42: 0
D43: 0
D44: 0
A45: Прочие работы, услуги , всего | D45: 3309900 | E45: =E46+E47+E48+E49+E50+E51+E52+E53+E54+E55+E56+E57+E58+E59+E60 -> 0 | F45: =F46+F47+F48+F49+F50+F51+F52+F53+F54+F55+F56+F57+F58+F59+F60 -> 0 | G45: 0 | H45: 519100 | I45: 0 | J45: 0 | K45: 0 | L45: 666500 | M45: 459900 | N45: 1664400 | O45: 0 | P45: 0 | Q45: =R45+S45+T45+U45+V45+W45+X45+Y45+Z45+AA45+AB45+AC45 -> 147340 | R45: =R46+R47+R48+R49+R50+R51+R52+R53+R54+R55+R56+R57+R58+R59+R60 -> 0 | S45: 0 | T45: 0 | U45: 0 | V45: 0 | W45: 0 | X45: 0 | Y45: 74100 | Z45: 55000 | AA45: 18240 | AB45: 0 | AC45: 0 | AD45: =AE45+AF45+AG45+AH45+AI45+AJ45+AK45+AL45+AM45+AN45+AO45+AP45 -> 147340 | AE45: =AE46+AE47+AE48+AE49+AE50+AE51+AE52+AE53+AE54+AE55+AE56+AE57+AE58+AE59+AE60 -> 0 | AF45: 0 | AG45: 0 | AH45: 0 | AI45: 0 | AJ45: 0 | AK45: 0 | AL45: 74100 | AM45: 55000 | AN45: 18240 | AO45: 0 | AP45: 0
A46: Проф.переподготовка,повыш.квалификации,обучающий вебинар | D46: 0 | Q46: 0 | AD46: 0
A47: питание в пришкольном лагере | D47: 0 | Q47: 0 | AD47: 0
A48: льготное питание | D48: 1645500 | H48: 519100 | L48: 666500 | M48: 459900 | Q48: 129100 | Y48: 74100 | Z48: 55000 | AD48: 129100 | AL48: 74100 | AM48: 55000
A49: аттестация раб мест | D49: 0 | Q49: 0 | AD49: 0
A50: медосмотр | D50: 0 | Q50: 0 | AD50: 0
A51: Монтаж системы передачи изв.о пож. | D51: 0 | Q51: 0 | AD51: 0
A52: аттестация раб мест | D52: 0 | Q52: 0 | AD52: 0
A53: Монтаж видеонаблюдения | D53: 0 | Q53: 0 | AD53: 0
A54: инкассация | D54: 0 | Q54: 0 | AD54: 0
A55: Оформление земли в собственность | D55: 0 | Q55: 0 | AD55: 0
A56: программное обеспечение | D56: 0 | Q56: 0 | AD56: 0
A57: оформление тех документации | D57: 0 | Q57: 0 | AD57: 0
A58: охрана | D58: 1664400 | N58: 1664400 | Q58: 18240 | AA58: 18240 | AD58: 18240 | AN58: 18240
D59: 0
D60: 0
A61: Увеличение стоимости основных средств | D61: 0 | E61: =E62+E63+E64+E65+E66+E67+E68+E69 -> 0 | F61: =F62+F63+F64+F65+F66+F67+F68+F69 -> 0 | G61: 0 | H61: 0 | I61: 0 | J61: 0 | K61: 0 | L61: 0 | M61: 0 | N61: 0 | O61: 0 | P61: 0 | Q61: =R61+S61+T61+U61+V61+W61+X61+Y61+Z61+AA61+AB61+AC61 -> 0 | R61: =R62+R63+R64+R65+R66+R67+R68+R69 -> 0 | S61: 0 | T61: 0 | U61: 0 | V61: 0 | W61: 0 | X61: 0 | Y61: 0 | Z61: 0 | AA61: 0 | AB61: 0 | AC61: 0 | AD61: =AE61+AF61+AG61+AH61+AI61+AJ61+AK61+AL61+AM61+AN61+AO61+AP61 -> 0 | AE61: =AE62+AE63+AE64+AE65+AE66+AE67+AE68+AE69 -> 0 | AF61: 0 | AG61: 0 | AH61: 0 | AI61: 0 | AJ61: 0 | AK61: 0 | AL61: 0 | AM61: 0 | AN61: 0 | AO61: 0 | AP61: 0
A62: курсы повышения квалиф. | D62: 0 | Q62: 0 | AD62: 0
A63: обследование дефектов зданий | D63: 0 | Q63: 0 | AD63: 0
A64: монтаж системы видеонаблюдения | D64: 0 | Q64: 0 | AD64: 0
A65: регистрация земельного участка | D65: 0 | Q65: 0 | AD65: 0
A66: мебель | D66: 0 | Q66: 0 | AD66: 0
A67: др. расходы | D67: 0 | Q67: 0 | AD67: 0
D68: 0
D69: 0
A70: Увеличение материальных запасов, всего | D70: =E70+F70+G70+H70+I70+J70+K70+L70+M70+N70+O70+P70 -> 337200 | E70: =E71+E72+E73+E74+E75+E76+E77 -> 0 | F70: =F71+F72+F73+F74+F75+F76+F77 -> 0 | G70: 0 | H70: 0 | I70: 0 | J70: 0 | K70: 0 | L70: 337200 | M70: 0 | N70: 0 | O70: 0 | P70: 0 | Q70: =R70+S70+T70+U70+V70+W70+X70+Y70+Z70+AA70+AB70+AC70 -> 37500 | R70: =R71+R72+R73+R74+R75+R76+R77 -> 0 | S70: 0 | T70: 0 | U70: 0 | V70: 0 | W70: 0 | X70: 0 | Y70: 37500 | Z70: 0 | AA70: 0 | AB70: 0 | AC70: 0 | AD70: =AE70+AF70+AG70+AH70+AI70+AJ70+AK70+AL70+AM70+AN70+AO70+AP70 -> 26966.7 | AE70: =AE71+AE72+AE73+AE74+AE75+AE76+AE77 -> 0 | AF70: 0 | AG70: 0 | AH70: 0 | AI70: 0 | AJ70: 0 | AK70: 0 | AL70: 26966.7 | AM70: 0 | AN70: 0 | AO70: 0 | AP70: 0
A71: стипендия | D71: 0 | Q71: 0 | AD71: 0
A72: разовые премии | D72: 0 | Q72: 0 | AD72: 0
A73: зап.части | D73: 0 | Q73: 0 | AD73: 0
A74: молоко | D74: 337200 | L74: 337200 | Q74: 37500 | Y74: 37500 | AD74: 26966.7 | AL74: 26966.7
A75: пени, штрафы | D75: 0 | Q75: 0 | AD75: 0
D76: 0 | Q76: 0 | AD76: 0
D77: 0 | Q77: 0 | AD77: 0
A79: Руководитель | E79: В.Г.Рудник
A81: Главный бухгалтер | E81: Н.А.Прыткова
